fUSD/lending_fUSD_20250930
["ID","MTS","AMOUNT","RATE_DAILY","PERIOD"]
[388498287,1759218633041,-500.0,0.00017671,2]
[388498288,1759218633052,-151.0,0.00017671,2]
[388498289,1759218633063,-500.0,0.00017671,2]
[388498290,1759218633073,-500.0,0.00017671,2]
[388498291,1759218633082,-500.0,0.00017671,2]
[388498292,1759218633091,-500.0,0.00017671,2]
[388498293,1759218633102,-151.0,0.00017671,2]
[388498294,1759218633112,-601.3376128,0.00017671,2]
[388498295,1759218633121,-500.0,0.00017671,2]
[388498296,1759218633133,-500.0,0.00017671,2]
[388498297,1759218633142,-151.0,0.00017671,2]
[388498298,1759218633151,-174.61919142,0.00017671,2]
[388498299,1759218633161,-500.0,0.00017671,2]
[388498300,1759218633170,-151.0,0.00017671,2]
[388498301,1759218633180,-500.0,0.00017671,2]
[388498302,1759218633189,-500.0,0.00017671,2]
[388498303,1759218633199,-296.34382813,0.00017671,2]
[388498304,1759218633208,-500.0,0.00017671,2]
[388498305,1759218633218,-247.34819929,0.00017671,2]
[388498306,1759218633227,-500.0,0.00017671,2]
[388498307,1759218633236,-500.0,0.00017671,2]
[388498308,1759218633246,-500.0,0.00017671,2]
[388498309,1759218633255,-500.0,0.00017671,2]
[388498310,1759218633264,-200.0,0.00017671,2]
[388498311,1759218633273,-500.0,0.00017671,2]
[388498312,1759218633283,-500.0,0.00017671,2]
[388498313,1759218633293,-500.0,0.00017671,2]
[388498314,1759218633303,-322.6107,0.00017671,2]
[388498315,1759218633312,-500.0,0.00017671,2]
[388498316,1759218633322,-500.0,0.00017671,2]
[388498317,1759218633331,-151.0,0.00017671,2]
[388498318,1759218633341,-200.0,0.00017671,2]
[388498319,1759218633351,-500.0,0.00017673,2]
[388498320,1759218633360,-500.0,0.00017673,2]
[388498321,1759218633369,-500.74261137,0.00017673,2]
[388498322,1759218633379,-500.0,0.00017673,2]
[388498323,1759218633864,-501.86394521,0.00017673,2]
[388498324,1759218633875,-159.983392,0.00017673,2]
[388498325,1759218633885,-159.983392,0.00017673,2]
[388498326,1759218633895,-2000.0,0.00017679,2]
[388498327,1759218633904,-33319.7588,0.00017681,2]
[388498328,1759218633914,-500.0,0.0001769,2]
[388498329,1759218633923,-218.64709972,0.0001769,2]
[388498330,1759218633932,-500.0,0.0001769,2]
[388498331,1759218633942,-605.34537631,0.0001769,2]
[388498332,1759218633952,-220.01238863,0.0001769,2]
[388498333,1759218633961,-500.0,0.0001769,2]
[388498334,1759218633971,-335.87901502,0.0001769,2]
[388498335,1759218633980,-500.0,0.0001769,2]
[388498336,1759218633990,-1451.27,0.0001769,2]
[388498337,1759218633999,-1694.8,0.0001769,2]
[388498338,1759218634009,-72348.40201176,0.00017691,2]
[388498339,1759218634069,-567.78010029,0.00017691,2]
[388498340,1759218634080,-747.94902305,0.00017691,2]
[388498341,1759218634092,-15943.6463246,0.00017691,2]
[388498406,1759218638799,-672.42999999,0.00017691,2]
[388498408,1759218638812,-681.06462257,0.00017691,2]
[388498410,1759218638824,-101021.61581774,0.00017691,2]
[388498412,1759218638835,-9211.34798985,0.000177,2]
[388498414,1759218638846,-157.87074045,0.000177,2]
[388498416,1759218638856,-5316.95259599,0.00017705,2]
[388498419,1759218638868,-152.0,0.00017707,3]
[388498421,1759218638879,-521.67743884,0.00017747,2]
[388498423,1759218638889,-9552.16786547,0.00017755,2]
[388498425,1759218638899,-43437.745711,0.00017805,2]
[388498427,1759218638908,-1140.03794524,0.0001781,2]
[388498429,1759218638918,-800.14276937,0.00017848,2]
[388498431,1759218638928,-264.15826762,0.0001787,2]
[388498433,1759218638937,-929.64387983,0.00017928,2]
[388498435,1759218638948,-1451.27,0.00017964,2]
[388498437,1759218638957,-1694.8,0.00017964,2]
[388498439,1759218638967,-521.67743881,0.00017986,2]
[388498442,1759218638977,-254.43,0.00018,2]
[388498444,1759218638987,-150.0,0.00018,2]
[388498445,1759218638997,-150.0,0.00018,2]
[388498446,1759218639006,-150.1938001,0.00018,2]
[388498447,1759218639016,-150.0,0.00018,2]
[388498448,1759218639025,-150.0,0.00018,2]
[388498449,1759218639035,-150.0,0.00018,2]
[388498450,1759218639044,-150.00000001,0.00018,2]
[388498451,1759218639054,-150.0,0.00018,2]
[388498452,1759218639068,-150.0,0.00018,2]
[388498453,1759218639079,-150.0,0.00018,2]
[388498454,1759218639088,-150.0,0.00018,2]
[388498455,1759218639098,-150.0,0.00018,2]
[388498456,1759218639109,-150.0,0.00018,2]
[388498457,1759218639119,-150.0,0.00018,2]
[388498458,1759218639127,-150.0,0.00018,2]
[388498459,1759218639137,-150.0,0.00018,2]
[388498460,1759218639147,-150.0,0.00018,2]
[388498461,1759218639157,-150.0,0.00018,2]
[388498462,1759218639167,-150.0,0.00018,2]
[388498463,1759218639177,-1595.0,0.000181,2]
[388498464,1759218639187,-800.14276937,0.00018104,2]
[388498465,1759218639197,-721.47563519,0.0001812,2]
[388498466,1759218639207,-150.0,0.00018143,2]
[388498467,1759218639217,-420.0,0.00018151,2]
[388498468,1759218639227,-150.0,0.00018182,2]
[388498469,1759218639237,-3610.11715925,0.0001821,2]
[388498470,1759218639247,-1000.0,0.00018221,2]
[388498471,1759218639256,-1000.0,0.00018221,2]
[388498472,1759218639273,-521.67743881,0.00018225,2]
[388498473,1759218639282,-787.0,0.00018226,2]
[388498474,1759218639292,-603.0,0.00018226,2]
[388498475,1759218639301,-1306.0,0.00018226,2]
[388498476,1759218639311,-570.0,0.00018226,2]
[388498477,1759218639322,-1584.0,0.00018226,2]
[388498478,1759218639332,-814.0,0.00018226,2]
[388498479,1759218639342,-13065.803,0.00018226,2]
[388498480,1759218639352,-4180.0,0.00018226,2]
[388498481,1759218639362,-6255.609,0.00018226,2]
[388498482,1759218639372,-728.0,0.00018226,2]
[388498483,1759218639382,-1451.27,0.00018238,2]
[388498484,1759218639392,-1694.8,0.00018238,2]
[388498485,1759218639401,-1680.0,0.00018242,2]
[388498486,1759218639411,-929.64387983,0.00018256,2]
[388498487,1759218639422,-171.04336019,0.00018265,2]
[388498488,1759218639431,-2000.0,0.00018265,2]
[388498489,1759218639441,-195.0,0.00018273,2]
[388498490,1759218639450,-257.36126675,0.00018273,2]
[388498491,1759218639460,-250.0,0.00018273,2]
[388498492,1759218639469,-150.0,0.00018286,2]
[388498493,1759218639479,-150.0,0.00018286,2]
[388498494,1759218639489,-800.14276937,0.00018361,2]
[388498495,1759218639498,-150.0,0.00018364,2]
[388498496,1759218639517,-150.0,0.000184,2]
[388498497,1759218639527,-150.0,0.000184,2]
[388498498,1759218639536,-150.0,0.000184,2]
[388498499,1759218639545,-150.0,0.00018429,2]
[388498500,1759218639555,-521.67743881,0.00018465,2]
[388498501,1759218639566,-150.0,0.000185,2]
[388498502,1759218639576,-2749.51,0.000185,7]
[388498503,1759218639586,-1451.27,0.00018512,2]
[388498504,1759218639596,-1694.8,0.00018512,2]
[388498505,1759218639606,-150.0,0.00018545,2]
[388498506,1759218639616,-150.0,0.00018571,2]
[388498507,1759218639626,-150.0,0.00018571,2]
[388498508,1759218639635,-929.64387983,0.00018585,2]
[388498509,1759218639646,-184.21,0.00018597,2]
[388498510,1759218639656,-800.14276937,0.00018617,2]
[388498511,1759218639665,-150.0,0.00018667,2]
[388498512,1759218639675,-150.0,0.00018667,2]
[388498513,1759218639685,-1350.843,0.00018671,2]
[388498514,1759218639695,-521.67743881,0.00018704,2]
[388498515,1759218639705,-500.0,0.00018712,2]
[388498516,1759218639715,-150.0,0.00018714,2]
[388498517,1759218639726,-150.0,0.00018727,2]
[388498518,1759218639735,-5000.0,0.0001874,2]
[388498519,1759218639745,-1500.0,0.00018768,2]
[388498520,1759218639755,-1500.0,0.00018768,2]
[388498521,1759218639765,-1451.27,0.00018785,2]
[388498522,1759218639774,-1694.8,0.00018785,2]
[388498523,1759218639784,-200.0,0.00018789,2]
[388498524,1759218639794,-150.0,0.000188,2]
[388498525,1759218639803,-150.0,0.000188,2]
[388498526,1759218639813,-150.0,0.000188,2]
[388498527,1759218639823,-155.876,0.00018839,2]
[388498528,1759218639833,-277.35679052,0.00018849,2]
[388498529,1759218639842,-150.0,0.00018857,2]
[388498530,1759218639852,-150.0,0.00018857,2]
[388498531,1759218639862,-800.14276937,0.00018874,2]
[388498532,1759218639871,-169.45,0.00018908,2]
[388498533,1759218639881,-150.0,0.00018909,2]
[388498534,1759218639891,-929.64387983,0.00018914,2]
[388498535,1759218639901,-152.0,0.00018939,4]
[388498536,1759218639911,-521.67743881,0.00018943,2]
[388498537,1759218639921,-150.0,0.00018969,2]
[388498538,1759218639931,-150.0,0.00018969,2]
[388498539,1759218639941,-150.0,0.00018969,2]
[388498540,1759218639952,-150.0,0.00018969,2]
[388498541,1759218639962,-500.0,0.00018969,2]
[388498543,1759218639972,-150.0,0.00018969,2]
[388498545,1759218639983,-150.53374238,0.00018969,2]
[388498547,1759218639992,-150.0,0.00018969,2]
[388498549,1759218640002,-150.47850875,0.00018969,2]
[388498551,1759218640012,-150.0,0.00018969,2]
[388498552,1759218640022,-150.0,0.00018969,2]
[388498553,1759218640032,-150.90482326,0.00018969,2]
[388498554,1759218640043,-152.73878866,0.00018969,2]
[388498555,1759218640053,-151.54102792,0.00018969,2]
[388498556,1759218640068,-150.41623405,0.00018969,2]
[388498557,1759218640078,-150.0,0.00018969,2]
[388498558,1759218640088,-150.0,0.00018969,2]
[388498559,1759218640100,-150.0,0.00018969,2]
[388498560,1759218640110,-150.0,0.00018969,2]
[388498561,1759218640120,-153.13753536,0.00018969,2]
[388498562,1759218640130,-500.0,0.00018969,2]
[388498563,1759218640141,-150.0,0.00018969,2]
[388498564,1759218640152,-150.0,0.00018969,2]
[388498565,1759218640162,-200.0,0.00018969,2]
[388498566,1759218640172,-431.0,0.00018969,2]
[388498567,1759218640182,-1439.0,0.00018969,2]
[388498568,1759218640192,-500.0,0.00018969,2]
[388498569,1759218640202,-150.0,0.00018969,2]
[388498570,1759218640212,-1083.0,0.00018969,2]
[388498571,1759218640224,-150.0,0.00018969,2]
[388498572,1759218640234,-2299.999996,0.00019,2]
[388498573,1759218640244,-150.0,0.00019,2]
[388498574,1759218640254,-150.0,0.00019,2]
[388498575,1759218640265,-150.0,0.00019,2]
[388498576,1759218640275,-150.0,0.00019,2]
[388498577,1759218640286,-150.0,0.00019,2]
[388498578,1759218640296,-150.0,0.00019,2]
[388498579,1759218640307,-150.0,0.00019,2]
[388498580,1759218640317,-179.44979038,0.0001904,2]
[388498581,1759218640328,-334.5472959,0.0001904,2]
[388498582,1759218640339,-1451.27,0.00019059,2]
[388498583,1759218640349,-1694.8,0.00019059,2]
[388498584,1759218640360,-168.69331718,0.00019062,2]
[388498585,1759218640370,-152.43,0.00019068,2]
[388498586,1759218640380,-151.32,0.00019068,2]
[388498587,1759218640390,-150.16,0.00019068,2]
[388498588,1759218640400,-150.0,0.00019091,2]
[388498589,1759218640410,-1200.0,0.00019096,2]
[388498590,1759218640420,-800.14276937,0.0001913,2]
[388498591,1759218640430,-150.0,0.00019143,2]
[388498592,1759218640440,-150.0,0.00019143,2]
[388498593,1759218640450,-158.38744319,0.00019151,2]
[388498594,1759218640460,-6151.84,0.00019151,2]
[388498595,1759218640470,-500.0,0.00019163,2]
[388498596,1759218640479,-500.0,0.00019178,2]
[388498597,1759218640489,-151.0,0.00019178,2]
[388498598,1759218640500,-5000.0,0.00019178,2]
[388498599,1759218640511,-500.0,0.00019178,2]
[388498600,1759218640520,-500.0,0.00019178,2]
[388498601,1759218640530,-500.0,0.00019178,2]
[388498602,1759218640540,-500.0,0.00019178,2]
[388498603,1759218640550,-500.0,0.00019178,2]
[388498604,1759218640560,-500.0,0.00019178,2]
[388498605,1759218640570,-500.0,0.00019178,2]
[388498606,1759218640580,-500.0,0.00019178,2]
[388498607,1759218640589,-521.67743881,0.00019182,2]
[388498608,1759218640600,-150.0,0.000192,4]
[388498609,1759218640610,-150.0,0.000192,4]
[388498610,1759218640621,-150.0,0.000192,4]
[388498611,1759218640631,-150.0,0.00019243,2]
[388498612,1759218640640,-151.64742852,0.00019243,2]
[388498613,1759218640650,-150.36353587,0.00019243,2]
[388498614,1759218640661,-150.0,0.00019243,2]
[388498615,1759218640671,-500.0,0.00019243,2]
[388498616,1759218640681,-150.0,0.00019243,2]
[388498617,1759218640692,-150.0,0.00019243,2]
[388498618,1759218640702,-250.0,0.00019243,2]
[388498619,1759218640711,-500.0,0.00019243,2]
[388498621,1759218640722,-150.0,0.00019243,2]
[388498622,1759218640731,-431.0,0.00019243,2]
[388498623,1759218640741,-1439.0,0.00019243,2]
[388498624,1759218640751,-500.0,0.00019243,2]
[388498625,1759218640762,-150.0,0.00019243,2]
[388498626,1759218640772,-1083.0,0.00019243,2]
[388498627,1759218640782,-150.0,0.00019243,2]
[388498628,1759218640792,-150.0,0.00019273,4]
[388498629,1759218640801,-150.0,0.00019286,4]
[388498630,1759218640811,-1033.0,0.00019316,2]
[388498631,1759218640821,-2000.0,0.00019316,2]
[388498632,1759218640832,-2000.0,0.00019316,2]
[388498633,1759218640842,-1451.27,0.00019333,2]
[388498634,1759218640852,-1694.8,0.00019333,2]
[388498635,1759218640863,-150.0,0.00019333,4]
[388498636,1759218640873,-150.0,0.00019333,4]
[388498637,1759218640883,-158.38744319,0.0001937,2]
[388498638,1759218640894,-800.14276937,0.00019387,2]
[388498639,1759218640904,-153.0,0.00019416,2]
[388498640,1759218640914,-153.0,0.00019416,2]
[388498641,1759218640924,-153.0,0.00019416,2]
[388498642,1759218640934,-153.0,0.00019416,2]
[388498643,1759218640944,-361.0,0.00019416,2]
[388498644,1759218640954,-361.0,0.00019416,2]
[388498645,1759218640964,-361.0,0.00019416,2]
[388498646,1759218640974,-361.0,0.00019416,2]
[388498647,1759218640984,-361.0,0.00019416,2]
[388498648,1759218640994,-361.0,0.00019416,2]
[388498649,1759218641004,-361.0,0.00019416,2]
[388498650,1759218641014,-361.0,0.00019416,2]
[388498651,1759218641024,-361.0,0.00019416,2]
[388498652,1759218641033,-361.0,0.00019416,2]
[388498653,1759218641043,-361.0,0.00019416,2]
[388498654,1759218641053,-361.0,0.00019416,2]
[388498655,1759218641068,-361.0,0.00019416,2]
[388498656,1759218641078,-361.0,0.00019416,2]
[388498657,1759218641088,-361.0,0.00019416,2]
[388498658,1759218641098,-361.0,0.00019416,2]
[388498659,1759218641108,-361.0,0.00019416,2]
[388498660,1759218641118,-361.0,0.00019416,2]
[388498661,1759218641128,-361.0,0.00019416,2]
[388498662,1759218641142,-361.0,0.00019416,2]
[388498663,1759218641152,-361.0,0.00019416,2]
[388498664,1759218641162,-361.0,0.00019416,2]
[388498665,1759218641171,-361.0,0.00019416,2]
[388498666,1759218641181,-361.0,0.00019416,2]
[388498667,1759218641191,-361.0,0.00019416,2]
[388498668,1759218641201,-361.0,0.00019416,2]
[388498669,1759218641211,-361.0,0.00019416,2]
[388498670,1759218641221,-361.0,0.00019416,2]
[388498671,1759218641231,-361.0,0.00019416,2]
[388498672,1759218641240,-361.0,0.00019416,2]
[388498673,1759218641249,-361.0,0.00019416,2]
[388498674,1759218641260,-361.0,0.00019416,2]
[388498675,1759218641271,-361.0,0.00019416,2]
[388498676,1759218641281,-361.0,0.00019416,2]
[388498677,1759218641291,-361.0,0.00019416,2]
[388498678,1759218641301,-361.0,0.00019416,2]
[388498679,1759218641311,-361.0,0.00019416,2]
[388498680,1759218641321,-361.0,0.00019416,2]
[388498681,1759218641331,-361.0,0.00019416,2]
[388498682,1759218641341,-361.0,0.00019416,2]
[388498683,1759218641351,-361.0,0.00019416,2]
[388498684,1759218641361,-361.0,0.00019416,2]
[388498685,1759218641371,-361.0,0.00019416,2]
[388498686,1759218641381,-361.0,0.00019416,2]
[388498687,1759218641391,-361.0,0.00019416,2]
[388498688,1759218641401,-361.0,0.00019416,2]
[388498689,1759218641410,-361.0,0.00019416,2]
[388498690,1759218641420,-361.0,0.00019416,2]
[388498691,1759218641429,-361.0,0.00019416,2]
[388498692,1759218641439,-361.0,0.00019416,2]
[388498693,1759218641448,-361.0,0.00019416,2]
[388498694,1759218641458,-361.0,0.00019416,2]
[388498695,1759218641468,-361.0,0.00019416,2]
[388498696,1759218641478,-361.0,0.00019416,2]
[388498697,1759218641487,-361.0,0.00019416,2]
[388498698,1759218641497,-361.0,0.00019416,2]
[388498699,1759218641507,-361.0,0.00019416,2]
[388498700,1759218641517,-361.0,0.00019416,2]
[388498701,1759218641527,-361.0,0.00019416,2]
[388498702,1759218641537,-361.0,0.00019416,2]
[388498703,1759218641547,-361.0,0.00019416,2]
[388498704,1759218641557,-361.0,0.00019416,2]
[388498706,1759218641567,-361.0,0.00019416,2]
[388498707,1759218641576,-361.0,0.00019416,2]
[388498708,1759218641586,-361.0,0.00019416,2]
[388498709,1759218641595,-361.0,0.00019416,2]
[388498710,1759218641606,-361.0,0.00019416,2]
[388498711,1759218641617,-361.0,0.00019416,2]
[388498712,1759218641626,-361.0,0.00019416,2]
[388498713,1759218641637,-361.0,0.00019416,2]
[388498714,1759218641647,-361.0,0.00019416,2]
[388498715,1759218641657,-361.0,0.00019416,2]
[388498716,1759218641667,-361.0,0.00019416,2]
[388498717,1759218641677,-361.0,0.00019416,2]
[388498718,1759218641687,-361.0,0.00019416,2]
[388498719,1759218641697,-361.0,0.00019416,2]
[388498720,1759218641707,-361.0,0.00019416,2]
[388498721,1759218641716,-361.0,0.00019416,2]
[388498722,1759218641726,-361.0,0.00019416,2]
[388498723,1759218641735,-361.0,0.00019416,2]
[388498724,1759218641745,-361.0,0.00019416,2]
[388498725,1759218641755,-361.0,0.00019416,2]
[388498726,1759218641764,-361.0,0.00019416,2]
[388498727,1759218641774,-361.0,0.00019416,2]
[388498728,1759218641784,-361.0,0.00019416,2]
[388498729,1759218642243,-361.0,0.00019416,2]
[388498730,1759218642253,-361.0,0.00019416,2]
[388498731,1759218642263,-361.0,0.00019416,2]
[388498732,1759218642272,-361.0,0.00019416,2]
[388498733,1759218642282,-361.0,0.00019416,2]
[388498734,1759218642292,-361.0,0.00019416,2]
[388498735,1759218642301,-361.0,0.00019416,2]
[388498736,1759218642310,-361.0,0.00019416,2]
[388498737,1759218642319,-361.0,0.00019416,2]
[388498738,1759218642328,-361.0,0.00019416,2]
[388498739,1759218642337,-361.0,0.00019416,2]
[388498740,1759218642347,-153.0,0.00019416,2]
[388498741,1759218642356,-153.0,0.00019416,2]
[388498742,1759218642365,-153.0,0.00019416,2]
[388498743,1759218642374,-153.0,0.00019416,2]
[388498744,1759218642384,-153.0,0.00019416,2]
[388498745,1759218642394,-153.0,0.00019416,2]
[388498746,1759218642403,-153.0,0.00019416,2]
[388498747,1759218642412,-153.0,0.00019416,2]
[388498748,1759218642422,-153.0,0.00019416,2]
[388498749,1759218642431,-153.0,0.00019416,2]
[388498750,1759218642440,-153.0,0.00019416,2]
[388498751,1759218642449,-153.0,0.00019416,2]
[388498752,1759218642458,-153.0,0.00019416,2]
[388498753,1759218642467,-153.0,0.00019416,2]
[388498754,1759218642477,-153.0,0.00019416,2]
[388498755,1759218642487,-153.0,0.00019416,2]
[388498756,1759218642496,-153.0,0.00019416,2]
[388498757,1759218642505,-153.0,0.00019416,2]
[388498758,1759218642515,-153.0,0.00019416,2]
[388498759,1759218642525,-153.0,0.00019416,2]
[388498760,1759218642534,-153.0,0.00019416,2]
[388498761,1759218642544,-153.0,0.00019416,2]
[388498762,1759218642554,-153.0,0.00019416,2]
[388498763,1759218642563,-153.0,0.00019416,2]
[388498764,1759218642572,-153.0,0.00019416,2]
[388498765,1759218642581,-153.0,0.00019416,2]
[388498766,1759218642591,-153.0,0.00019416,2]
[388498767,1759218642600,-153.0,0.00019416,2]
[388498768,1759218642610,-153.0,0.00019416,2]
[388498769,1759218642619,-153.0,0.00019416,2]
[388498770,1759218642630,-153.0,0.00019416,2]
[388498771,1759218642640,-153.0,0.00019416,2]
[388498772,1759218642649,-153.0,0.00019416,2]
[388498773,1759218642658,-153.0,0.00019416,2]
[388498774,1759218642668,-153.0,0.00019416,2]
[388498775,1759218642677,-153.0,0.00019416,2]
[388498776,1759218642687,-153.0,0.00019416,2]
[388498777,1759218642696,-153.0,0.00019416,2]
[388498778,1759218642706,-153.0,0.00019416,2]
[388498779,1759218642716,-153.0,0.00019416,2]
[388498780,1759218642727,-153.0,0.00019416,2]
[388498781,1759218642736,-153.0,0.00019416,2]
[388498782,1759218642746,-153.0,0.00019416,2]
[388498783,1759218642756,-153.0,0.00019416,2]
[388498784,1759218642766,-153.0,0.00019416,2]
[388498785,1759218642776,-153.0,0.00019416,2]
[388498786,1759218642786,-153.0,0.00019416,2]
[388498787,1759218642795,-153.0,0.00019416,2]
[388498788,1759218642806,-153.0,0.00019416,2]
[388498789,1759218642816,-153.0,0.00019416,2]
[388498790,1759218642826,-153.0,0.00019416,2]
[388498791,1759218642837,-153.0,0.00019416,2]
[388498792,1759218642846,-153.0,0.00019416,2]
[388498793,1759218642856,-153.0,0.00019416,2]
[388498794,1759218642865,-153.0,0.00019416,2]
[388498795,1759218642876,-153.0,0.00019416,2]
[388498796,1759218642885,-153.0,0.00019416,2]
[388498797,1759218642895,-153.0,0.00019416,2]
[388498798,1759218642905,-153.0,0.00019416,2]
[388498799,1759218642914,-521.67743881,0.00019422,2]
[388498800,1759218642923,-150.0,0.00019429,4]
[388498801,1759218642933,-150.0,0.00019429,4]
[388498802,1759218642942,-473.55,0.00019429,2]
[388498803,1759218642951,-500.0,0.00019452,2]
[388498804,1759218642961,-150.0,0.00019455,4]
[388498805,1759218642971,-500.0,0.00019469,2]
[388498806,1759218642981,-500.0,0.00019469,2]
[388498807,1759218642990,-500.0,0.00019469,2]
[388498808,1759218642999,-500.0,0.00019469,2]
[388498809,1759218643008,-500.0,0.00019469,2]
[388498810,1759218643017,-500.0,0.00019469,2]
[388498811,1759218643027,-500.0,0.00019469,2]
[388498812,1759218643036,-500.0,0.00019469,2]
[388498813,1759218643045,-500.0,0.00019469,2]
[388498814,1759218643054,-500.0,0.00019469,2]
[388498815,1759218643067,-500.0,0.00019469,2]
[388498816,1759218643076,-500.0,0.00019469,2]
[388498817,1759218643085,-500.0,0.00019469,2]
[388498818,1759218643094,-500.0,0.00019469,2]
[388498819,1759218643105,-500.0,0.00019469,2]
[388498820,1759218643114,-500.0,0.00019469,2]
[388498821,1759218643123,-500.0,0.00019469,2]
[388498822,1759218643135,-500.0,0.00019469,2]
[388498823,1759218643144,-500.0,0.00019469,2]
[388498824,1759218643153,-500.0,0.00019469,2]
[388498825,1759218643163,-500.0,0.00019469,2]
[388498826,1759218643172,-500.0,0.00019469,2]
[388498827,1759218643182,-500.0,0.00019469,2]
[388498828,1759218643193,-500.0,0.00019469,2]
[388498829,1759218643202,-500.0,0.00019469,2]
[388498830,1759218643212,-500.0,0.00019469,2]
[388498831,1759218643222,-500.0,0.00019469,2]
[388498832,1759218643231,-500.0,0.00019469,2]
[388498833,1759218643241,-500.0,0.00019469,2]
[388498834,1759218643250,-500.0,0.00019469,2]
[388498835,1759218643259,-500.0,0.00019469,2]
[388498836,1759218643269,-500.0,0.00019469,2]
[388498837,1759218643278,-500.0,0.00019469,2]
[388498838,1759218643288,-500.0,0.00019469,2]
[388498839,1759218643297,-500.0,0.00019469,2]
[388498840,1759218643307,-500.0,0.00019469,2]
[388498841,1759218643316,-500.0,0.00019469,2]
[388498842,1759218643326,-500.0,0.00019469,2]
[388498843,1759218643335,-500.0,0.00019469,2]
[388498844,1759218643346,-557.0,0.00019469,2]
[388498845,1759218643356,-500.0,0.00019469,2]
[388498846,1759218643366,-500.0,0.00019469,2]
[388498847,1759218643377,-500.0,0.00019469,2]
[388498848,1759218643387,-500.0,0.00019469,2]
[388498849,1759218643397,-500.0,0.00019469,2]
[388498850,1759218643407,-500.0,0.00019469,2]
[388498851,1759218643416,-500.0,0.00019469,2]
[388498852,1759218643425,-500.0,0.00019469,2]
[388498853,1759218643435,-500.0,0.00019469,2]
[388498854,1759218643444,-500.0,0.00019469,2]
[388498855,1759218643454,-500.0,0.00019469,2]
[388498856,1759218643464,-500.0,0.00019469,2]
[388498857,1759218643473,-500.0,0.00019469,2]
[388498858,1759218643483,-500.0,0.00019469,2]
[388498859,1759218643493,-500.0,0.00019469,2]
[388498860,1759218643503,-500.0,0.00019469,2]
[388498861,1759218643512,-500.0,0.00019469,2]
[388498862,1759218643522,-500.0,0.00019469,2]
[388498863,1759218643532,-500.0,0.00019469,2]
[388498864,1759218643542,-500.0,0.00019469,2]
[388498865,1759218643552,-500.0,0.00019469,2]
[388498866,1759218643562,-500.0,0.00019469,2]
[388498867,1759218643572,-500.0,0.00019469,2]
[388498868,1759218643582,-500.0,0.00019469,2]
[388498869,1759218643592,-500.0,0.00019469,2]
[388498870,1759218643602,-500.0,0.00019469,2]
[388498871,1759218643613,-500.0,0.00019469,2]
[388498872,1759218643623,-500.0,0.00019469,2]
[388498873,1759218643633,-500.0,0.00019469,2]
[388498874,1759218643643,-500.0,0.00019469,2]
[388498875,1759218643652,-500.0,0.00019469,2]
[388498876,1759218643662,-500.0,0.00019469,2]
[388498877,1759218643672,-500.0,0.00019469,2]